[Event "GER-ch Youth U12 2019"]
[Site "Willingen"]
[Date "2019.06.12"]
[Round "5.14"]
[White "Hoffmann, Kay"]
[Black "Guo, Philipp Ziming"]
[Result "1/2-1/2"]
[ECO "A03"]
[WhiteElo "1433"]
[BlackElo "1674"]
[Annotator "NA"]
[PlyCount "81"]
[EventDate "2019.06.07"]
[EventType "swiss"]
[EventRounds "9"]
[EventCountry "GER"]
[SourceTitle "playchess.com"]
[Source "ChessBase"]
[SourceQuality "1"]
[TimeControl "40/4500+30:900+30"]

1. f4 {[%emt 0:00:00]} d5 {[%emt 0:00:00]} 2. Nf3 {[%emt 0:00:00]} g6 {[%emt 0:00:00]} 3. e3 {[%emt 0:00:00]} Bg7 {[%emt 0:00:00]} 4. d4 {[%emt 0:00:00]} Nh6 {[%emt 0:00:00]} 5. Bd3 {[%emt 0:00:00]} Bf5 {[%emt 0:00:00]} 6. O-O {[%emt 0:00:00]} O-O {[%emt 0:00:00]} 7. Qe2 {[%emt 0:00:00]} Bxd3 {[%emt 0:00:00]} 8. Qxd3 {[%emt 0:00:00]} f5 {[%emt 0:00:00]} 9. Nbd2 {[%emt 0:00:00]} Nf7 {[%emt 0:02:08]} 10. Ne5 {[%emt 0:00:00]} Nxe5 {[%emt 0:06:52]} 11. fxe5 {[%emt 0:00:00]} e6 {[%emt 0:09:29]} 12. Nf3 {[%emt 0:00:00]} Nd7 {[%emt 0:05:11]} 13. Bd2 {[%emt 0:00:00]} Re8 {[%emt 0:02:48]} 14. Be1 {[%emt 0:00:00]} g5 {[%emt 0:06:56]} 15. Qe2 {[%emt 0:04:02]} Nf8 {[%emt 0:02:56]} 16. Bd2 {[%emt 0:02:48]} Ng6 {[%emt 0:08:27]} 17. g3 {[%emt 0:02:03]} Bf8 {[%emt 0:05:47]} 18. Rf2 {[%emt 0:18:35]} Be7 19. Ne1 {[%emt 0:04:35]} g4 {[%emt 0:06:42]} 20. Ng2 {[%emt 0:01:05]} Kg7 {[%emt 0:03:32]} 21. Nf4 {[%emt 0:00:25]} Nxf4 {[%emt 0:00:37]} 22. exf4 {[%emt 0:00:34]} c5 {[%emt 0:02:28]} 23. Be3 {[%emt 0:01:46]} Qb6 {[%emt 0:02:33]} 24. c3 {[%emt 0:00:23]} c4 {[%emt 0:00:55]} 25. Qc2 {[%emt 0:01:06]} Qc6 {[%emt 0:01:08]} 26. Rff1 {[%emt 0:00:43]} b5 {[%emt 0:01:05]} 27. a3 {[%emt 0:01:38]} a5 {[%emt 0:01:58]} 28. Rfb1 {[%emt 0:03:05]} a4 29. Kg2 {[%emt 0:03:00]} h5 {[%emt 0:01:49]} 30. Rh1 {[%emt 0:00:50]} Rh8 {[%emt 0:01:43]} 31. Qe2 {[%emt 0:03:12]} Rh6 {[%emt 0:01:20]} 32. Qd2 {[%emt 0:04:40]} Rah8 {[%emt 0:00:24]} 33. Rae1 {[%emt 0:02:10]} Qe8 {[%emt 0:00:48]} 34. Qd1 {[%emt 0:01:18]} h4 {[%emt 0:01:21]} 35. Bd2 {[%emt 0:01:28]} Qg6 {[%emt 0:01:43]} 36. Be3 {[%emt 0:00:29]} hxg3 {[%emt 0:01:25]} 37. hxg3 {[%emt 0:00:06]} Rh3 {[%emt 0:00:24]} 38. Bf2 {[%emt 0:02:07]} Qh5 {[%emt 0:00:30]} 39. Reg1 {[%emt 0:03:32]} Bd8 {[%emt 0:02:08]} 40. Qc1 {[%emt 0:01:26]} Be7 {[%emt 0:01:13]} 41. Qd1 {[%emt 0:15:27] normal} 1/2-1/2

[Event "GER-ch Youth U12 2019"]
[Site "Willingen"]
[Date "2019.06.12"]
[Round "5.15"]
[White "Mueller, Maximilian"]
[Black "Krueger, Arthur"]
[Result "1-0"]
[ECO "C78"]
[WhiteElo "1606"]
[BlackElo "1613"]
[Annotator "NA"]
[PlyCount "155"]
[EventDate "2019.06.07"]
[EventType "swiss"]
[EventRounds "9"]
[EventCountry "GER"]
[SourceTitle "playchess.com"]
[Source "ChessBase"]
[SourceQuality "1"]
[TimeControl "40/4500+30:900+30"]

1. e4 {[%emt 0:00:00]} e5 {[%emt 0:00:00]} 2. Nf3 {[%emt 0:00:00]} Nc6 {[%emt 0:00:00]} 3. Bb5 {[%emt 0:00:00]} a6 {[%emt 0:00:00]} 4. Ba4 {[%emt 0:00:00]} Nf6 {[%emt 0:00:00]} 5. O-O {[%emt 0:00:00]} b5 {[%emt 0:00:00]} 6. Bb3 {[%emt 0:00:00]} Bc5 {[%emt 0:00:00]} 7. c3 {[%emt 0:00:00]} d6 {[%emt 0:00:00]} 8. a4 {[%emt 0:00:00]} Rb8 {[%emt 0:00:00]} 9. d4 {[%emt 0:00:00]} Bb6 {[%emt 0:00:00]} 10. a5 {[%emt 0:00:00]} Nxa5 {[%emt 0:06:46]} 11. Rxa5 {[%emt 0:00:00]} Bxa5 {[%emt 0:06:54]} 12. dxe5 {[%emt 0:00:00]} Ng8 {[%emt 0:15:15]} 13. Ng5 {[%emt 0:10:08]} Nh6 {[%emt 0:10:58]} 14. e6 {[%emt 0:17:59]} fxe6 {[%emt 0:15:45]} 15. Qh5+ {[%emt 0:00:41]} Kf8 {[%emt 0:04:34]} 16. f4 {[%emt 0:03:33]} Qf6 {[%emt 0:04:53]} 17. Be3 {[%emt 0:02:39]} Bb6 {[%emt 0:03:03]} 18. Bxb6 {[%emt 0:00:12]} Rxb6 {[%emt 0:00:29]} 19. f5 {[%emt 0:00:43]} exf5 {[%emt 0:05:01]} 20. exf5 {[%emt 0:00:28]} Rb7 {[%emt 0:05:19]} 21. Ne6+ {[%emt 0:00:35]} Ke7 {[%emt 0:00:54]} 22. Re1 {[%emt 0:02:39]} Kd7 {[%emt 0:00:56]} 23. Rf1 {[%emt 0:12:51]} Rb6 {[%emt 0:01:14]} 24. Nd2 {[%emt 0:01:09]} Qe7 {[%emt 0:02:04]} 25. Ne4 {[%emt 0:03:20]} Ng8 {[%emt 0:00:40]} 26. Rd1 {[%emt 0:01:09]} Bb7 {[%emt 0:01:45]} 27. N4c5+ {[%emt 0:02:15]} Kc8 {[%emt 0:00:10]} 28. Nxb7 {[%emt 0:01:51]} Kxb7 {[%emt 0:00:16]} 29. Qf3+ {[%emt 0:00:42]} Ka7 {[%emt 0:00:31]} 30. Bd5 {[%emt 0:01:02]} Nf6 {[%emt 0:00:29]} 31. c4 {[%emt 0:03:03]} Nxd5 {[%emt 0:00:28]} 32. cxd5 {[%emt 0:00:25]} Rc8 {[%emt 0:00:37]} 33. Rc1 {[%emt 0:00:42]} Kb7 {[%emt 0:00:20]} 34. b4 {[%emt 0:02:51]} c6 {[%emt 0:00:35]} 35. dxc6+ {[%emt 0:00:25]} Rbxc6 {[%emt 0:01:17]} 36. Nd4 {[%emt 0:00:32]} Qd7 {[%emt 0:00:25]} 37. Nxc6 {[%emt 0:00:12]} Rxc6 {[%emt 0:00:07]} 38. Qd5 {[%emt 0:01:04]} Kc7 {[%emt 0:00:52]} 39. Rxc6+ {[%emt 0:00:23]} Qxc6 {[%emt 0:00:08]} 40. Qf7+ {[%emt 0:00:51]} Qd7 {[%emt 0:00:49]} 41. Qd5 {[%emt 0:15:27]} Qe7 {[%emt 0:00:00]} 42. Qd2 {[%emt 0:00:00]} Qf6 {[%emt 0:00:00]} 43. Qc1+ {[%emt 0:00:00]} Kd7 {[%emt 0:00:00]} 44. Qb1 {[%emt 0:00:00]} Qd4+ {[%emt 0:00:00]} 45. Kf1 {[%emt 0:00:00]} Qf4+ {[%emt 0:00:00]} 46. Kg1 {[%emt 0:00:00]} Kc6 {[%emt 0:00:00]} 47. h3 {[%emt 0:00:00]} h6 {[%emt 0:00:00]} 48. Qc2+ {[%emt 0:00:00]} Qc4 {[%emt 0:00:36]} 49. Qb2 {[%emt 0:00:00]} Qf7 {[%emt 0:02:01]} 50. Qc3+ {[%emt 0:00:00]} Kd7 {[%emt 0:01:08]} 51. Qc2 {[%emt 0:00:00]} Qf6 {[%emt 0:01:36]} 52. Qb1 {[%emt 0:00:00]} Qd4+ {[%emt 0:01:11]} 53. Kf1 {[%emt 0:00:00]} d5 {[%emt 0:00:25]} 54. g4 {[%emt 0:00:00]} Qe3 {[%emt 0:00:53]} 55. Kg2 {[%emt 0:00:00]} d4 {[%emt 0:00:35]} 56. Qa2 {[%emt 0:00:00]} Qe4+ {[%emt 0:07:20]} 57. Kf2 {[%emt 0:00:00]} Qe3+ {[%emt 0:04:24]} 58. Kg2 {[%emt 0:00:00]} d3 {[%emt 0:01:41]} 59. Qd5+ {[%emt 0:00:00]} Kc7 {[%emt 0:01:21]} 60. Qf7+ {[%emt 0:00:00]} Kd6 {[%emt 0:01:23]} 61. Qf8+ {[%emt 0:00:00]} Kd5 {[%emt 0:00:30]} 62. Qf7+ {[%emt 0:00:00]} Kd6 {[%emt 0:00:30]} 63. Qf8+ {[%emt 0:00:00]} Qe7 {[%emt 0:00:47]} 64. Qb8+ {[%emt 0:00:00]} Qc7 {[%emt 0:00:24]} 65. Qf8+ {[%emt 0:00:00]} Kc6 {[%emt 0:00:15]} 66. Qc5+ {[%emt 0:00:00]} Kb7 {[%emt 0:00:36]} 67. Qd4 {[%emt 0:00:00]} Qc2+ {[%emt 0:00:37]} 68. Kf3 {[%emt 0:00:00]} Qe2+ {[%emt 0:00:26]} 69. Kg3 {[%emt 0:00:00]} Qc2 {[%emt 0:00:52]} 70. Qxg7+ {[%emt 0:00:00]} Qc7+ {[%emt 0:00:23]} 71. Qxc7+ {[%emt 0:00:00]} Kxc7 {[%emt 0:00:13]} 72. Kf3 {[%emt 0:00:00]} Kd6 {[%emt 0:01:08]} 73. Ke3 {[%emt 0:00:00]} Kc6 {[%emt 0:00:39]} 74. Kxd3 {[%emt 0:00:00]} Kd5 {[%emt 0:00:09]} 75. h4 {[%emt 0:00:00]} Ke5 {[%emt 0:00:28]} 76. Ke3 {[%emt 0:00:00]} Kd5 {[%emt 0:00:38]} 77. g5 {[%emt 0:00:00]} hxg5 {[%emt 0:00:31]} 78. hxg5 {[%emt 0:00:00] normal} 1-0

[Event "GER-ch Youth U12 2019"]
[Site "Willingen"]
[Date "2019.06.12"]
[Round "6.1"]
[White "Bakiev, Diyor"]
[Black "Foerster-Yialamas, Lucas"]
[Result "1/2-1/2"]
[ECO "B50"]
[WhiteElo "2123"]
[BlackElo "1981"]
[Annotator "NA"]
[PlyCount "56"]
[EventDate "2019.06.07"]
[EventType "swiss"]
[EventRounds "9"]
[EventCountry "GER"]
[SourceTitle "playchess.com"]
[Source "ChessBase"]
[SourceQuality "1"]
[TimeControl "40/4500+30:900+30"]

1. e4 {[%emt 0:00:00]} c5 {[%emt 0:00:00]} 2. Nf3 {[%emt 0:00:00]} d6 {[%emt 0:00:00]} 3. Nc3 {[%emt 0:00:00]} Nf6 {[%emt 0:00:00]} 4. e5 {[%emt 0:00:00]} dxe5 {[%emt 0:00:00]} 5. Nxe5 {[%emt 0:00:00]} Nbd7 {[%emt 0:00:00]} 6. d4 {[%emt 0:00:00]} Nxe5 {[%emt 0:00:00]} 7. dxe5 {[%emt 0:00:00]} Qxd1+ {[%emt 0:00:00]} 8. Kxd1 {[%emt 0:00:00]} Ng4 {[%emt 0:00:00]} 9. Bb5+ {[%emt 0:00:00]} Bd7 {[%emt 0:00:00]} 10. e6 {[%emt 0:00:00]} fxe6 {[%emt 0:01:04]} 11. Ke2 {[%emt 0:00:00]} Bxb5+ {[%emt 0:03:37]} 12. Nxb5 {[%emt 0:00:00]} Kf7 {[%emt 0:00:10]} 13. Bf4 {[%emt 0:00:00]} g6 {[%emt 0:06:59]} 14. Rad1 {[%emt 0:00:00]} Nf6 {[%emt 0:00:57]} 15. Rhe1 {[%emt 0:04:38]} Bg7 {[%emt 0:07:54]} 16. Nc7 {[%emt 0:11:57]} Rad8 {[%emt 0:01:24]} 17. Rxd8 {[%emt 0:11:13]} Rxd8 {[%emt 0:00:09]} 18. Kf3 {[%emt 0:00:24]} e5 {[%emt 0:08:56]} 19. Rxe5 {[%emt 0:11:51]} Rc8 {[%emt 0:12:32]} 20. Ne6 {[%emt 0:08:49]} Nd7 {[%emt 0:04:53]} 21. Re1 {[%emt 0:05:47]} Bf6 {[%emt 0:00:53]} 22. c3 {[%emt 0:05:17]} c4 {[%emt 0:04:35]} 23. Ng5+ {[%emt 0:03:55]} Bxg5 {[%emt 0:00:18]} 24. Bxg5 {[%emt 0:00:05]} Nf6 {[%emt 0:00:12]} 25. Bxf6 {[%emt 0:03:37]} exf6 {[%emt 0:00:17]} 26. Re4 {[%emt 0:01:39]} Rc6 {[%emt 0:00:17]} 27. Ke3 {[%emt 0:03:15] normal} f5 {[%emt 0:01:04]} 28. Rd4 {[%emt 0:02:30]} Ke7 {[%emt 0:00:38] normal} 1/2-1/2

[Event "GER-ch Youth U12 2019"]
[Site "Willingen"]
[Date "2019.06.12"]
[Round "6.2"]
[White "Kluehs, Gustaf"]
[Black "Freude, Max"]
[Result "1/2-1/2"]
[ECO "A14"]
[WhiteElo "1705"]
[BlackElo "1707"]
[Annotator "NA"]
[PlyCount "40"]
[EventDate "2019.06.07"]
[EventType "swiss"]
[EventRounds "9"]
[EventCountry "GER"]
[SourceTitle "playchess.com"]
[Source "ChessBase"]
[SourceQuality "1"]
[TimeControl "40/4500+30:900+30"]

1. Nf3 {[%emt 0:00:00]} Nf6 {[%emt 0:00:00]} 2. g3 {[%emt 0:00:00]} e6 {[%emt 0:00:00]} 3. Bg2 {[%emt 0:00:00]} d5 {[%emt 0:00:00]} 4. c4 {[%emt 0:00:00]} Be7 {[%emt 0:00:00]} 5. O-O {[%emt 0:00:00]} O-O {[%emt 0:00:00]} 6. cxd5 {[%emt 0:00:00]} exd5 {[%emt 0:00:00]} 7. d3 {[%emt 0:00:00]} c5 {[%emt 0:00:00]} 8. b3 {[%emt 0:00:00]} Nc6 {[%emt 0:00:00]} 9. Bb2 {[%emt 0:00:00]} b6 {[%emt 0:00:00]} 10. Nbd2 {[%emt 0:04:05]} Bb7 {[%emt 0:03:08]} 11. Ne5 {[%emt 0:07:36]} Nxe5 {[%emt 0:02:21]} 12. Bxe5 {[%emt 0:00:04]} Bd6 {[%emt 0:01:42]} 13. Bxd6 {[%emt 0:04:54]} Qxd6 {[%emt 0:00:08]} 14. Qc2 {[%emt 0:01:20]} Rad8 {[%emt 0:02:20]} 15. Rfe1 {[%emt 0:01:30]} Rfe8 {[%emt 0:01:05]} 16. Rad1 {[%emt 0:02:42]} Qb8 {[%emt 0:07:55]} 17. e3 {[%emt 0:08:28]} d4 {[%emt 0:03:39]} 18. Bxb7 {[%emt 0:03:12]} Qxb7 {[%emt 0:00:26]} 19. e4 {[%emt 0:00:43]} Qd7 {[%emt 0:02:20]} 20. Kg2 {[%emt 0:00:30]} h5 {[%emt 0:03:51] normal} 1/2-1/2

[Event "GER-ch Youth U12 2019"]
[Site "Willingen"]
[Date "2019.06.12"]
[Round "6.3"]
[White "Metzdorf, Matteo"]
[Black "Woltmann, Peter"]
[Result "1-0"]
[ECO "C11"]
[WhiteElo "1859"]
[BlackElo "1471"]
[Annotator "NA"]
[PlyCount "46"]
[EventDate "2019.06.07"]
[EventType "swiss"]
[EventRounds "9"]
[EventCountry "GER"]
[SourceTitle "playchess.com"]
[Source "ChessBase"]
[SourceQuality "1"]
[TimeControl "40/4500+30:900+30"]

1. e4 {[%emt 0:00:00]} e6 {[%emt 0:00:00]} 2. d4 {[%emt 0:00:00]} d5 {[%emt 0:00:00]} 3. Nc3 {[%emt 0:00:00]} Nf6 {[%emt 0:00:00]} 4. e5 {[%emt 0:00:00]} Nfd7 {[%emt 0:00:00]} 5. f4 {[%emt 0:00:00]} c5 {[%emt 0:00:00]} 6. Nf3 {[%emt 0:00:00]} Nc6 {[%emt 0:00:00]} 7. Be3 {[%emt 0:00:00]} c4 {[%emt 0:00:00]} 8. Be2 {[%emt 0:10:07]} a6 {[%emt 0:00:00]} 9. f5 {[%emt 0:08:13]} Nb6 {[%emt 0:00:00]} 10. fxe6 {[%emt 0:04:15]} Bxe6 {[%emt 0:00:00]} 11. Ng5 {[%emt 0:06:12]} Be7 {[%emt 0:00:16]} 12. Nxe6 {[%emt 0:04:48]} fxe6 {[%emt 0:00:11]} 13. O-O {[%emt 0:01:25]} Qd7 {[%emt 0:00:58]} 14. a4 {[%emt 0:08:40]} Na5 {[%emt 0:01:26]} 15. Qd2 {[%emt 0:03:01]} Bb4 {[%emt 0:00:56]} 16. Bg4 {[%emt 0:12:38]} O-O-O {[%emt 0:01:30]} 17. Qe2 {[%emt 0:03:54]} Na8 {[%emt 0:05:52]} 18. Na2 {[%emt 0:03:31]} Be7 {[%emt 0:02:27]} 19. Rf7 {[%emt 0:05:36]} Rhg8 {[%emt 0:04:57]} 20. b4 {[%emt 0:02:34]} Nc6 {[%emt 0:01:10]} 21. b5 {[%emt 0:01:21]} Nb8 {[%emt 0:01:16]} 22. Bg5 {[%emt 0:01:25]} Rde8 {[%emt 0:00:17]} 23. Nc3 {[%emt 0:00:58]} h6 {[%emt 0:01:44] normal} 1-0

[Event "GER-ch Youth U12 2019"]
[Site "Willingen"]
[Date "2019.06.12"]
[Round "6.4"]
[White "Stork, Christopher"]
[Black "Sosa Costa, Leonardo"]
[Result "1/2-1/2"]
[ECO "C54"]
[WhiteElo "1817"]
[BlackElo "1945"]
[Annotator "NA"]
[PlyCount "87"]
[EventDate "2019.06.07"]
[EventType "swiss"]
[EventRounds "9"]
[EventCountry "GER"]
[SourceTitle "playchess.com"]
[Source "ChessBase"]
[SourceQuality "1"]
[TimeControl "40/4500+30:900+30"]

1. e4 {[%emt 0:00:00]} e5 {[%emt 0:00:00]} 2. Nf3 {[%emt 0:00:00]} Nc6 {[%emt 0:00:00]} 3. Bc4 {[%emt 0:00:00]} Bc5 {[%emt 0:00:00]} 4. c3 {[%emt 0:00:00]} Nf6 {[%emt 0:00:00]} 5. d3 {[%emt 0:00:00]} d6 {[%emt 0:00:00]} 6. a4 {[%emt 0:00:00]} a5 {[%emt 0:00:00]} 7. Nbd2 {[%emt 0:00:00]} O-O {[%emt 0:00:00]} 8. O-O {[%emt 0:00:00]} Bb6 {[%emt 0:00:00]} 9. Re1 {[%emt 0:00:00]} Ne7 {[%emt 0:01:18]} 10. Nf1 {[%emt 0:00:00]} Ng6 {[%emt 0:03:34]} 11. Ng3 {[%emt 0:00:00]} Be6 {[%emt 0:05:54]} 12. Ba2 {[%emt 0:00:00]} Qd7 {[%emt 0:04:32]} 13. Be3 {[%emt 0:00:00]} Bxe3 {[%emt 0:00:38]} 14. Rxe3 {[%emt 0:01:10]} Bxa2 {[%emt 0:09:01]} 15. Rxa2 {[%emt 0:00:19]} d5 {[%emt 0:04:18]} 16. Ra1 {[%emt 0:04:10]} Rfe8 {[%emt 0:03:26]} 17. Qc2 {[%emt 0:02:51]} Rad8 {[%emt 0:00:50]} 18. Rae1 {[%emt 0:02:39]} dxe4 {[%emt 0:08:53]} 19. dxe4 {[%emt 0:02:53]} Nf4 {[%emt 0:06:58]} 20. Rb1 {[%emt 0:03:51]} Qc6 {[%emt 0:11:49]} 21. Ree1 {[%emt 0:04:54]} Nd7 {[%emt 0:03:52]} 22. Rbd1 {[%emt 0:02:11]} f6 {[%emt 0:01:13]} 23. h3 {[%emt 0:10:27]} Nc5 {[%emt 0:01:55]} 24. Rxd8 {[%emt 0:02:43]} Rxd8 {[%emt 0:00:04]} 25. b3 {[%emt 0:00:17]} Rd3 {[%emt 0:03:28]} 26. Re3 {[%emt 0:03:21]} Rd8 {[%emt 0:01:30]} 27. Nd2 {[%emt 0:01:21]} Qd7 {[%emt 0:01:47]} 28. Ngf1 {[%emt 0:00:39]} b6 {[%emt 0:00:41]} 29. f3 {[%emt 0:00:38]} Kf8 {[%emt 0:00:39]} 30. Qa2 {[%emt 0:06:40]} Qf7 {[%emt 0:00:37]} 31. Kh2 {[%emt 0:02:36]} Qg6 {[%emt 0:00:26]} 32. g3 {[%emt 0:00:26]} Nfe6 {[%emt 0:00:29]} 33. Qc2 {[%emt 0:01:26]} h5 {[%emt 0:00:38]} 34. b4 {[%emt 0:02:53]} axb4 {[%emt 0:00:34]} 35. cxb4 {[%emt 0:00:11]} Na6 {[%emt 0:00:14]} 36. Qc4 {[%emt 0:00:39]} h4 {[%emt 0:00:58]} 37. Qxe6 {[%emt 0:06:52]} Rxd2+ {[%emt 0:01:34]} 38. Nxd2 {[%emt 0:00:38]} Qxg3+ {[%emt 0:00:03]} 39. Kh1 {[%emt 0:00:16]} Qf2 {[%emt 0:00:32]} 40. Qc8+ {[%emt 0:02:17]} Ke7 {[%emt 0:01:21]} 41. Qxa6 {[%emt 0:21:13]} Qxe3 {[%emt 0:15:30]} 42. Qc4 {[%emt 0:02:15]} Qxd2 {[%emt 0:01:08]} 43. Qxc7+ {[%emt 0:00:14]} Kf8 {[%emt 0:00:58]} 44. Qxb6 {[%emt 0:00:28] normal} 1/2-1/2

[Event "GER-ch Youth U12 2019"]
[Site "Willingen"]
[Date "2019.06.12"]
[Round "6.5"]
[White "Hagner, Bennet"]
[Black "Fuchs, Florian"]
[Result "1/2-1/2"]
[ECO "B47"]
[WhiteElo "1900"]
[BlackElo "2235"]
[Annotator "NA"]
[PlyCount "71"]
[EventDate "2019.06.07"]
[EventType "swiss"]
[EventRounds "9"]
[EventCountry "GER"]
[SourceTitle "playchess.com"]
[Source "ChessBase"]
[SourceQuality "1"]
[TimeControl "40/4500+30:900+30"]

1. e4 {[%emt 0:00:00]} c5 {[%emt 0:00:00]} 2. Nf3 {[%emt 0:00:00]} e6 {[%emt 0:00:00]} 3. d4 {[%emt 0:00:00]} cxd4 {[%emt 0:00:00]} 4. Nxd4 {[%emt 0:00:00]} Nc6 {[%emt 0:00:00]} 5. Nc3 {[%emt 0:00:00]} Qc7 {[%emt 0:00:00]} 6. Nb3 {[%emt 0:00:00]} Nf6 {[%emt 0:00:00]} 7. Bd3 {[%emt 0:00:00]} a6 {[%emt 0:00:00]} 8. O-O {[%emt 0:00:00]} b5 {[%emt 0:00:00]} 9. a3 {[%emt 0:00:00]} Bb7 {[%emt 0:00:00]} 10. Bd2 {[%emt 0:00:00]} Be7 {[%emt 0:00:00]} 11. Kh1 {[%emt 0:00:00]} O-O {[%emt 0:00:00]} 12. f4 {[%emt 0:00:00]} d6 {[%emt 0:01:35]} 13. Qf3 {[%emt 0:00:00]} Nd7 {[%emt 0:02:14]} 14. Rae1 {[%emt 0:01:08]} Nc5 {[%emt 0:02:37]} 15. Nxc5 {[%emt 0:01:16]} dxc5 {[%emt 0:00:07]} 16. Be3 {[%emt 0:06:48]} c4 {[%emt 0:06:49]} 17. Be2 {[%emt 0:00:16]} Bf6 {[%emt 0:00:10]} 18. Qg3 {[%emt 0:04:46]} Bd4 {[%emt 0:08:05]} 19. Rd1 {[%emt 0:05:43]} Rad8 {[%emt 0:06:03]} 20. Bd2 {[%emt 0:09:33]} Bc5 {[%emt 0:01:50]} 21. Qg4 {[%emt 0:06:01]} Nd4 {[%emt 0:01:58]} 22. f5 {[%emt 0:01:01]} exf5 {[%emt 0:00:51]} 23. exf5 {[%emt 0:00:26]} f6 {[%emt 0:01:14]} 24. Bf4 {[%emt 0:03:55]} Qb6 {[%emt 0:06:44]} 25. Rd2 {[%emt 0:04:05]} Rfe8 {[%emt 0:05:44]} 26. h4 {[%emt 0:02:10]} Kh8 {[%emt 0:01:01]} 27. h5 {[%emt 0:01:37]} a5 {[%emt 0:02:43]} 28. Nd1 {[%emt 0:04:47]} Be4 {[%emt 0:11:51]} 29. h6 {[%emt 0:04:40]} Qb7 {[%emt 0:04:04]} 30. hxg7+ {[%emt 0:04:03]} Qxg7 {[%emt 0:00:52]} 31. Qxg7+ {[%emt 0:02:18]} Kxg7 {[%emt 0:00:05]} 32. Bc7 {[%emt 0:03:40]} Ra8 {[%emt 0:03:29]} 33. Bf3 {[%emt 0:03:25]} Bxf3 {[%emt 0:05:16]} 34. gxf3 {[%emt 0:00:09]} Ra7 {[%emt 0:03:22]} 35. Bh2 {[%emt 0:03:02] normal} Rc8 {[%emt 0:07:41]} 36. Nc3 1/2-1/2

[Event "GER-ch Youth U12 2019"]
[Site "Willingen"]
[Date "2019.06.12"]
[Round "6.6"]
[White "Kempe, Caius Emilian"]
[Black "Tomasjan, Samuel"]
[Result "1-0"]
[ECO "C11"]
[WhiteElo "1766"]
[BlackElo "1476"]
[Annotator "NA"]
[PlyCount "59"]
[EventDate "2019.06.07"]
[EventType "swiss"]
[EventRounds "9"]
[EventCountry "GER"]
[SourceTitle "playchess.com"]
[Source "ChessBase"]
[SourceQuality "1"]
[TimeControl "40/4500+30:900+30"]

1. e4 {[%emt 0:00:00]} e6 {[%emt 0:00:00]} 2. Nc3 {[%emt 0:00:00]} d5 {[%emt 0:00:00]} 3. Nf3 {[%emt 0:00:00]} dxe4 {[%emt 0:00:00]} 4. Nxe4 {[%emt 0:00:00]} Nd7 {[%emt 0:00:00]} 5. d4 {[%emt 0:00:00]} Ngf6 {[%emt 0:00:00]} 6. Nc3 {[%emt 0:00:00]} Bb4 {[%emt 0:00:00]} 7. a3 {[%emt 0:00:00]} Bxc3+ {[%emt 0:00:00]} 8. bxc3 {[%emt 0:00:00]} b6 {[%emt 0:00:00]} 9. Be2 {[%emt 0:00:00]} Bb7 {[%emt 0:00:00]} 10. O-O {[%emt 0:00:00]} O-O {[%emt 0:00:00]} 11. Bg5 {[%emt 0:01:42]} Qe8 {[%emt 0:03:27]} 12. Bf4 {[%emt 0:04:32]} Qc8 {[%emt 0:07:01]} 13. Ne5 {[%emt 0:00:30]} Nxe5 {[%emt 0:00:30]} 14. Bxe5 {[%emt 0:00:30]} Ne4 {[%emt 0:00:30]} 15. Qd3 {[%emt 0:00:30]} a5 {[%emt 0:11:27]} 16. a4 {[%emt 0:04:56]} f5 {[%emt 0:00:30]} 17. Qe3 {[%emt 0:00:30]} Qd8 {[%emt 0:00:30]} 18. Bc4 {[%emt 0:00:30]} Bd5 {[%emt 0:00:30]} 19. Bb3 {[%emt 0:00:30]} f4 {[%emt 0:00:30]} 20. Bxf4 {[%emt 0:00:30]} Nxc3 {[%emt 0:00:30]} 21. Be5 {[%emt 0:00:30]} Ne4 {[%emt 0:00:30]} 22. c4 {[%emt 0:00:30]} Bb7 {[%emt 0:00:30]} 23. d5 {[%emt 0:00:30]} exd5 {[%emt 0:00:30]} 24. cxd5 {[%emt 0:00:30]} Nd6 {[%emt 0:00:30]} 25. Qg3 {[%emt 0:00:30]} Qd7 {[%emt 0:00:30]} 26. Rac1 {[%emt 0:00:30]} Qd8 {[%emt 0:00:30]} 27. Bc4 {[%emt 0:00:30]} Rxf2 {[%emt 0:00:30]} 28. Bxd6 {[%emt 0:00:30]} cxd6 {[%emt 0:00:30]} 29. Bb3 {[%emt 0:00:30]} Bxd5 {[%emt 0:00:30]} 30. Bxd5+ {[%emt 0:00:30] normal} 1-0

[Event "GER-ch Youth U12 2019"]
[Site "Willingen"]
[Date "2019.06.12"]
[Round "6.7"]
[White "Reichmann, Felix"]
[Black "Hecht, Jonas Christian"]
[Result "1-0"]
[ECO "A10"]
[WhiteElo "1725"]
[BlackElo "1726"]
[Annotator "NA"]
[PlyCount "42"]
[EventDate "2019.06.07"]
[EventType "swiss"]
[EventRounds "9"]
[EventCountry "GER"]
[SourceTitle "playchess.com"]
[Source "ChessBase"]
[SourceQuality "1"]
[TimeControl "40/4500+30:900+30"]

1. c4 {[%emt 0:00:00]} f5 {[%emt 0:00:00]} 2. g3 {[%emt 0:00:00]} Nf6 {[%emt 0:00:00]} 3. Bg2 {[%emt 0:00:00]} g6 {[%emt 0:00:00]} 4. Nc3 {[%emt 0:00:00]} Bg7 {[%emt 0:00:00]} 5. d3 {[%emt 0:00:00]} O-O {[%emt 0:00:00]} 6. e3 {[%emt 0:00:00]} d6 {[%emt 0:00:00]} 7. Nge2 {[%emt 0:00:00]} Nc6 {[%emt 0:00:00]} 8. O-O {[%emt 0:00:00]} e5 {[%emt 0:00:00]} 9. f4 {[%emt 0:00:00]} Qe8 {[%emt 0:00:00]} 10. Nd5 {[%emt 0:00:00]} Nxd5 {[%emt 0:00:00]} 11. cxd5 {[%emt 0:00:00]} Ne7 {[%emt 0:00:00]} 12. Qb3 {[%emt 0:00:00]} Kh8 {[%emt 0:01:08]} 13. Bd2 {[%emt 0:00:00]} c6 {[%emt 0:11:27]} 14. dxc6 {[%emt 0:07:39]} Nxc6 {[%emt 0:00:24]} 15. Rfe1 {[%emt 0:00:39]} Rb8 {[%emt 0:13:12]} 16. Qa3 {[%emt 0:07:15]} Qd7 {[%emt 0:06:08]} 17. Rac1 {[%emt 0:00:58]} Re8 {[%emt 0:02:17]} 18. b4 {[%emt 0:00:58]} Ra8 {[%emt 0:02:11]} 19. b5 {[%emt 0:08:02]} Nd8 {[%emt 0:02:48]} 20. b6 {[%emt 0:00:18]} Nc6 {[%emt 0:00:12]} 21. Nc3 {[%emt 0:06:16]} Ne7 {[%emt 0:05:54] normal} 1-0

[Event "GER-ch Youth U12 2019"]
[Site "Willingen"]
[Date "2019.06.12"]
[Round "6.8"]
[White "Deuer, Marius"]
[Black "Zweigait, Leon"]
[Result "1-0"]
[ECO "B01"]
[WhiteElo "1961"]
[BlackElo "1474"]
[Annotator "NA"]
[PlyCount "35"]
[EventDate "2019.06.07"]
[EventType "swiss"]
[EventRounds "9"]
[EventCountry "GER"]
[SourceTitle "playchess.com"]
[Source "ChessBase"]
[SourceQuality "1"]
[TimeControl "40/4500+30:900+30"]

1. e4 {[%emt 0:00:00]} d5 {[%emt 0:00:00]} 2. exd5 {[%emt 0:00:00]} Nf6 {[%emt 0:00:00]} 3. Nf3 {[%emt 0:00:00]} Qxd5 {[%emt 0:00:00]} 4. d4 {[%emt 0:00:00]} Bg4 {[%emt 0:00:00]} 5. Be2 {[%emt 0:00:00]} Nc6 {[%emt 0:00:00]} 6. O-O {[%emt 0:00:00]} O-O-O {[%emt 0:00:00]} 7. Be3 {[%emt 0:00:00]} Qd6 {[%emt 0:00:00]} 8. c3 {[%emt 0:03:06]} Bxf3 {[%emt 0:00:00]} 9. Bxf3 {[%emt 0:03:28]} e5 {[%emt 0:00:00]} 10. Qb3 {[%emt 0:05:21]} Nd5 11. Nd2 {[%emt 0:07:00]} exd4 {[%emt 0:00:00]} 12. cxd4 {[%emt 0:00:43]} Be7 {[%emt 0:04:08]} 13. Nc4 {[%emt 0:08:45]} Qb4 {[%emt 0:00:38]} 14. Qd3 {[%emt 0:02:32]} g6 {[%emt 0:08:56]} 15. a3 {[%emt 0:02:56]} Qa4 {[%emt 0:00:11]} 16. b3 {[%emt 0:06:45]} Qa6 {[%emt 0:00:09]} 17. b4 {[%emt 0:00:32]} Nb6 {[%emt 0:07:40]} 18. b5 {[%emt 0:01:16] normal} 1-0